bitfinex-derivatives/quotes_BTCF0:USTF0_20250928
["timestamp","ask_amount","ask_price","bid_price","bid_amount"]
[1759067075903,0.03524,109680.0,109670.0,0.1138912]
[1759067076102,0.03524,109680.0,109670.0,0.9463312]
[1759067076996,0.03724,109680.0,109670.0,0.9463312]
[1759067077299,0.03724,109680.0,109670.0,0.1138912]
[1759067077701,0.39804,109680.0,109670.0,0.9462912]
[1759067077997,0.4195014,109680.0,109670.0,0.9462912]
[1759067078204,0.39804,109680.0,109670.0,0.9462912]
[1759067078404,0.41950262,109680.0,109670.0,0.9462912]
[1759067078605,0.41950262,109680.0,109670.0,0.1138912]
[1759067078908,0.39804,109680.0,109670.0,0.9462912]
[1759067079203,0.03724,109680.0,109670.0,0.9462912]
[1759067079406,0.41950287,109680.0,109670.0,0.9462512]
[1759067080107,0.05870287,109680.0,109670.0,0.9462512]
[1759067080406,0.03724,109680.0,109670.0,0.9462512]
[1759067080606,0.03924,109680.0,109670.0,0.9462512]
[1759067081109,0.06081101,109680.0,109670.0,0.9462512]
[1759067081910,0.06081101,109680.0,109670.0,0.1138912]
[1759067082109,0.06081101,109680.0,109670.0,0.9462512]
[1759067084310,0.03924,109680.0,109670.0,0.9462512]
[1759067084513,0.0608083,109680.0,109670.0,0.9462512]
[1759067085409,0.03924,109680.0,109670.0,0.9462512]
[1759067087112,0.03924,109680.0,109670.0,0.1138912]
[1759067087313,0.03924,109680.0,109670.0,0.9461712]
[1759067091215,0.06080638,109680.0,109670.0,0.9461712]
[1759067095520,0.42160638,109680.0,109670.0,0.9461712]
[1759067096020,0.42160638,109680.0,109670.0,0.1138912]
[1759067096220,0.82160638,109680.0,109670.0,0.1138912]
[1759067097022,0.91273928,109680.0,109670.0,0.1138912]
[1759067097223,0.03568,109670.0,109660.0,0.1130595]
[1759067097514,0.41804638,109670.0,109660.0,0.1130595]
[1759067097821,0.90918758,109670.0,109660.0,0.1130595]
[1759067098120,0.81804638,109670.0,109660.0,0.1130595]
[1759067098322,0.90918758,109670.0,109660.0,0.1130595]
[1759067098817,0.91018758,109670.0,109660.0,0.1130595]
[1759067099219,0.91118758,109670.0,109660.0,0.1130595]
[1759067102523,0.82004638,109670.0,109660.0,0.1130595]
[1759067103132,0.05924638,109670.0,109660.0,0.1130595]
[1759067115144,0.05924638,109670.0,109660.0,0.9451395]
[1759067118145,0.05924638,109670.0,109660.0,1.3059395]
[1759067119245,0.03768,109670.0,109660.0,1.3059395]
[1759067121543,0.03768,109670.0,109660.0,0.9451395]
[1759067125263,0.05930116,109670.0,109660.0,0.9451395]
[1759067125458,0.05930116,109670.0,109660.0,1.3059395]
[1759067125649,0.03768,109670.0,109660.0,0.9451395]
[1759067128460,0.03768,109670.0,109660.0,1.3059395]
[1759067128863,0.05930225,109670.0,109660.0,1.3059395]
[1759067129564,0.05930225,109670.0,109660.0,1.3168495]
[1759067135967,0.05930225,109670.0,109660.0,0.9560495]
[1759067136167,0.05930225,109670.0,109660.0,0.9558495]
[1759067136372,0.05930225,109670.0,109660.0,1.3166495]
[1759067139667,0.05930225,109670.0,109660.0,0.9558495]
[1759067139867,0.05930225,109670.0,109660.0,1.3166495]
[1759067140565,0.05930225,109670.0,109660.0,0.9558495]
[1759067140966,0.05930225,109670.0,109660.0,1.3166495]
[1759067142365,0.05930225,109670.0,109660.0,0.4847695]
[1759067142564,0.05930225,109670.0,109660.0,1.3166095]
[1759067143072,0.05930225,109670.0,109660.0,1.3165695]
[1759067143571,0.05930225,109670.0,109660.0,0.9557695]
[1759067144173,0.05930225,109670.0,109660.0,0.9448595]
[1759067144975,0.05930225,109670.0,109660.0,0.9448195]
[1759067149584,0.05930225,109670.0,109660.0,0.1130595]
[1759067149877,0.05930225,109670.0,109660.0,0.9447795]
[1759067151882,0.05930225,109670.0,109660.0,0.1130595]
[1759067152082,0.05930225,109670.0,109660.0,0.9447395]
[1759067152784,0.05930225,109670.0,109660.0,0.9446995]
[1759067152984,0.05930225,109670.0,109660.0,0.1130595]
[1759067153183,0.05930225,109670.0,109660.0,0.9446995]
[1759067153373,0.42010225,109670.0,109660.0,0.1130595]
[1759067154001,0.42010225,109670.0,109660.0,0.9446995]
[1759067158403,0.51124345,109670.0,109660.0,0.9446995]
[1759067159995,0.42010225,109670.0,109660.0,0.9446995]
[1759067160305,0.51124135,109670.0,109660.0,0.9446995]
[1759067161202,0.51124135,109670.0,109660.0,0.9446595]
[1759067161399,0.51124135,109670.0,109660.0,0.9446195]
[1759067161595,0.51124135,109670.0,109660.0,0.1130595]
[1759067161797,0.51124135,109670.0,109660.0,0.9446195]
[1759067162105,0.93205693,109670.0,109660.0,0.0911495]
[1759067162692,0.0911543,109660.0,109650.0,0.1130808]
[1759067162898,0.51031655,109660.0,109650.0,0.9446408]
[1759067163099,0.51031655,109660.0,109650.0,0.1130808]
[1759067163300,0.51031655,109660.0,109650.0,0.9446408]
[1759067164602,0.51031655,109660.0,109650.0,0.9456408]
[1759067165607,0.05836225,109660.0,109650.0,0.9456408]
[1759067165799,0.41916225,109660.0,109650.0,0.9466408]
[1759067166801,0.51030955,109660.0,109650.0,0.9466408]
[1759067167006,0.41916225,109660.0,109650.0,0.9466408]
[1759067167801,0.41916225,109660.0,109650.0,0.1150808]
[1759067167999,0.41916225,109660.0,109650.0,0.9466008]
[1759067168704,0.51030955,109660.0,109650.0,0.9466008]
[1759067169803,0.51030955,109660.0,109650.0,0.1150865]
[1759067174708,0.41916225,109660.0,109650.0,0.1150865]
[1759067175108,0.05836225,109660.0,109650.0,0.1150865]
[1759067176604,0.41916225,109660.0,109650.0,0.1150865]
[1759067177908,0.05836225,109660.0,109650.0,0.1150865]
[1759067178307,0.41916225,109660.0,109650.0,0.1150865]
[1759067179006,0.51031045,109660.0,109650.0,0.1150865]
[1759067191918,0.51031045,109660.0,109650.0,0.0931565]
[1759067193621,1.34159045,109660.0,109650.0,0.0931565]
[1759067194423,1.34159045,109660.0,109650.0,0.1151065]
[1759067194716,1.34159045,109660.0,109650.0,0.0931565]
[1759067194918,1.34159045,109660.0,109650.0,0.1151065]
[1759067195313,1.34159045,109660.0,109650.0,0.0931565]
[1759067198720,1.34159045,109660.0,109650.0,0.1151065]
[1759067200324,1.34159045,109660.0,109650.0,0.0931565]
[1759067202227,1.34159045,109660.0,109650.0,0.1151065]
[1759067202434,0.51031045,109660.0,109650.0,0.1151065]
[1759067202622,1.34159045,109660.0,109650.0,0.0931565]
[1759067203026,1.34159045,109660.0,109650.0,0.1151065]
[1759067205328,0.98079045,109660.0,109650.0,0.1151065]
[1759067205523,0.51031045,109660.0,109650.0,0.1151065]
[1759067205729,1.34159045,109660.0,109650.0,0.0931565]
[1759067208726,0.51031045,109660.0,109650.0,0.0921565]
[1759067208925,1.34355045,109660.0,109650.0,0.0921565]
[1759067209926,1.34355045,109660.0,109650.0,0.001]
[1759067210134,0.1268965,109650.0,109640.0,0.1125642]
[1759067210434,0.73339418,109650.0,109640.0,0.0911642]
[1759067210624,0.73339418,109650.0,109640.0,0.1125642]
[1759067211435,0.80946917,109650.0,109640.0,0.0911642]
[1759067211626,0.81146917,109650.0,109640.0,0.0911642]
[1759067213034,1.64754917,109650.0,109640.0,0.0911642]
[1759067213735,1.64754917,109650.0,109640.0,0.1125642]
[1759067214437,0.81146917,109650.0,109640.0,0.1125642]
[1759067214632,1.64742917,109650.0,109640.0,0.1125642]
[1759067215438,1.64726917,109650.0,109640.0,0.1125642]
[1759067218441,0.81146917,109650.0,109640.0,0.1125642]
[1759067218632,1.64702917,109650.0,109640.0,0.1125642]
[1759067218831,1.55587267,109650.0,109640.0,0.1125642]
[1759067219038,1.55567267,109650.0,109640.0,0.1125642]
[1759067219540,1.55663267,109650.0,109640.0,0.1125642]
[1759067220842,1.64778917,109650.0,109640.0,0.1125642]
[1759067221043,0.72031267,109650.0,109640.0,0.1125642]
[1759067221242,1.55655267,109650.0,109640.0,0.1125642]
[1759067221741,1.55647267,109650.0,109640.0,0.1125642]
[1759067222844,0.72031267,109650.0,109640.0,0.1125642]
[1759067223144,1.55635267,109650.0,109640.0,0.1125642]
[1759067223747,0.72031267,109650.0,109640.0,0.1125642]
[1759067224040,1.19551267,109650.0,109640.0,0.1125642]
[1759067224638,0.35951267,109650.0,109640.0,0.1125642]
[1759067224949,1.19543267,109650.0,109640.0,0.1125642]
[1759067226433,1.19543267,109650.0,109640.0,0.4733642]
[1759067226742,0.35951267,109650.0,109640.0,0.4733642]
[1759067227841,0.35951267,109650.0,109640.0,0.1125642]
[1759067236958,0.34605267,109650.0,109640.0,0.5253742]
[1759067241954,0.34605267,109650.0,109640.0,1.3616142]
[1759067242148,0.34605267,109650.0,109640.0,0.5253742]
[1759067242353,0.34605267,109650.0,109640.0,1.3616142]
[1759067245766,5e-08,109650.0,109640.0,1.7224142]
[1759067245964,5e-08,109650.0,109640.0,0.8861742]
[1759067246457,5e-08,109650.0,109640.0,1.7220542]
[1759067248465,5e-08,109650.0,109640.0,1.7870292]
[1759067250360,5e-08,109650.0,109640.0,1.7869492]
[1759067250863,5e-08,109650.0,109640.0,0.9513892]
[1759067251059,0.48746735,109680.0,109670.0,0.1143189]
[1759067251259,0.39633665,109680.0,109670.0,0.1143189]
[1759067252173,0.48746725,109680.0,109670.0,0.1143189]
[1759067257773,0.50906416,109680.0,109670.0,0.1143189]
[1759067258074,0.50906416,109680.0,109670.0,0.0911389]
[1759067258277,0.1252429,109670.0,109660.0,0.114321]
[1759067258469,0.50763981,109670.0,109660.0,0.091141]
[1759067259267,0.50763581,109670.0,109660.0,0.114321]
[1759067262876,0.50763581,109670.0,109660.0,0.091141]
[1759067265976,0.1252472,109660.0,109650.0,0.0911527]
[1759067266180,0.50764411,109660.0,109650.0,0.0911527]
[1759067271573,0.1270556,109650.0,109640.0,0.0911603]
[1759067271779,0.58236815,109650.0,109640.0,0.0911603]
[1759067272078,0.58236815,109650.0,109640.0,0.1127103]
[1759067276488,0.49121255,109650.0,109640.0,0.1127103]
[1759067276974,0.13041255,109650.0,109640.0,0.1127103]
[1759067277177,0.58236805,109650.0,109640.0,0.1127103]
[1759067286491,1.43863644,109650.0,109640.0,0.0911603]
[1759067288291,1.41768805,109650.0,109640.0,0.0911603]
[1759067288795,0.58236805,109650.0,109640.0,0.0911603]
[1759067288985,1.41744805,109650.0,109640.0,0.0911603]
[1759067289992,0.58236805,109650.0,109640.0,0.0911603]
[1759067290193,1.41748805,109650.0,109640.0,0.0911603]
[1759067291893,1.41724805,109650.0,109640.0,0.0911603]
[1759067292996,1.41728805,109650.0,109640.0,0.0911603]
[1759067293891,0.58236805,109650.0,109640.0,0.0911603]
[1759067294096,1.41728805,109650.0,109640.0,0.0911603]
[1759067294394,0.58236805,109650.0,109640.0,0.0911603]
[1759067294600,1.41716805,109650.0,109640.0,0.0911603]
[1759067296692,0.58236805,109650.0,109640.0,0.0911603]
[1759067297093,1.41688805,109650.0,109640.0,0.0911603]
[1759067300004,1.41696282,109650.0,109640.0,0.0911603]
[1759067305802,1.43852524,109650.0,109640.0,0.0911603]
[1759067309003,0.98536974,109650.0,109640.0,0.1127103]
[1759067309399,0.15204974,109650.0,109640.0,0.1127103]
[1759067309801,0.11685732,109650.0,109640.0,0.8797303]
[1759067310006,0.09518564,109650.0,109640.0,0.8797303]
[1759067313508,0.09518564,109650.0,109640.0,1.7134103]
[1759067315807,0.09518564,109650.0,109640.0,0.8797303]
[1759067316112,0.10873564,109650.0,109640.0,1.7069503]
[1759067316410,0.10873564,109650.0,109640.0,0.8735103]
[1759067316607,0.02134,109660.0,109650.0,0.1255166]
[1759067316913,0.39517,109670.0,109660.0,0.1126982]
[1759067317211,0.41681894,109670.0,109660.0,0.1126982]
[1759067317908,0.05601894,109670.0,109660.0,0.1126982]
[1759067319313,0.41681894,109670.0,109660.0,0.1126982]
[1759067319511,0.05601894,109670.0,109660.0,0.1126982]
[1759067320017,0.41681894,109670.0,109660.0,0.1126982]
[1759067320212,0.05601894,109670.0,109660.0,0.1126982]
[1759067320913,0.41681894,109670.0,109660.0,0.1126982]
[1759067321322,0.05601894,109670.0,109660.0,0.1126982]
[1759067321812,0.04298894,109670.0,109660.0,0.1236082]
[1759067322215,0.02134,109670.0,109660.0,0.1236082]
[1759067323119,0.03489,109670.0,109660.0,0.4844082]
[1759067327818,0.03489,109670.0,109660.0,0.1126982]
[1759067328215,0.03489,109670.0,109660.0,0.5126982]
[1759067334522,0.03489,109670.0,109660.0,0.1126982]
[1759067335426,0.39569,109670.0,109660.0,0.1126982]
[1759067336229,0.41731397,109670.0,109660.0,0.1126982]
[1759067338831,0.05651397,109670.0,109660.0,0.1126982]
[1759067339031,0.41731397,109670.0,109660.0,0.1126982]
[1759067340128,0.05651397,109670.0,109660.0,0.1126982]
[1759067344040,0.41731397,109670.0,109660.0,0.1126982]
[1759067348951,0.05651397,109670.0,109660.0,0.1126982]
[1759067351160,0.41731397,109670.0,109660.0,0.1126982]
[1759067357664,0.05651397,109670.0,109660.0,0.1126982]
[1759067364360,0.41731397,109670.0,109660.0,0.1126982]
[1759067368757,0.81731397,109670.0,109660.0,0.0911482]
[1759067369152,0.90845537,109670.0,109650.0,0.0911566]
[1759067369357,1.34173732,109660.0,109650.0,0.0911525]
[1759067369551,1.36336129,109660.0,109650.0,0.0911525]
[1759067369757,1.34201367,109660.0,109650.0,0.0911525]
[1759067370772,1.76301171,109660.0,109650.0,0.0911525]
[1759067371267,1.74201367,109660.0,109650.0,0.0911525]
[1759067373469,0.90985367,109660.0,109650.0,0.0911525]
[1759067373660,1.74201367,109660.0,109650.0,0.0911525]
[1759067375670,0.81870397,109660.0,109650.0,0.0911525]
[1759067375871,1.74201367,109660.0,109650.0,0.1129425]
[1759067376062,0.90985367,109660.0,109650.0,0.1129425]
[1759067376259,1.74203566,109660.0,109650.0,0.0911525]
[1759067376464,0.90987566,109660.0,109650.0,0.0911525]
[1759067376672,1.74203566,109660.0,109650.0,0.0911525]
[1759067378781,0.90987566,109660.0,109650.0,0.1129425]
[1759067379073,1.74199566,109660.0,109650.0,0.1129425]
[1759067379475,1.34199566,109660.0,109650.0,0.1129425]
[1759067381975,0.50987566,109660.0,109650.0,0.1129425]
[1759067382173,1.34199566,109660.0,109650.0,0.1129425]
[1759067383179,1.36130372,109660.0,109650.0,0.1129425]
[1759067384675,0.52918372,109660.0,109650.0,0.1129425]
[1759067384882,0.43803402,109660.0,109650.0,0.1129425]
[1759067385077,1.27011402,109660.0,109650.0,0.1129425]
[1759067390189,1.36126372,109660.0,109650.0,0.1129425]
[1759067393487,1.36122372,109660.0,109650.0,0.1129425]
[1759067394889,1.27007402,109660.0,109650.0,0.1129425]
[1759067395487,0.43803402,109660.0,109650.0,0.1129425]
[1759067395689,1.27007402,109660.0,109650.0,0.1129425]
[1759067396794,1.36122372,109660.0,109650.0,0.1129425]
[1759067397483,1.27007402,109660.0,109650.0,0.1129425]
[1759067397682,1.27003402,109660.0,109650.0,0.1129425]
[1759067400191,1.27003402,109660.0,109650.0,0.0911525]
[1759067400382,1.36118372,109660.0,109650.0,0.0911525]
[1759067405615,1.36110372,109660.0,109650.0,0.0911525]
[1759067412512,0.43803402,109660.0,109650.0,0.1121825]
[1759067412911,0.43803402,109660.0,109650.0,0.5121825]
[1759067413217,1.26987402,109660.0,109650.0,0.5121825]
[1759067416711,0.90907402,109660.0,109650.0,0.5121825]
[1759067417215,0.07723402,109660.0,109650.0,0.5121825]
[1759067421021,0.05558806,109660.0,109650.0,0.5121825]
[1759067425517,0.07723199,109660.0,109650.0,0.5121825]
[1759067428827,0.07722978,109660.0,109650.0,0.5121825]
[1759067439432,0.07722978,109660.0,109650.0,0.1121825]
[1759067493582,0.07722978,109660.0,109650.0,0.4729825]
[1759067493884,0.07722978,109660.0,109650.0,0.1121825]
[1759067504178,0.07722978,109660.0,109650.0,0.4729825]
[1759067504489,0.06385978,109660.0,109650.0,0.4857925]
[1759067512901,0.06385978,109660.0,109650.0,1.3161925]
[1759067514303,0.06385978,109660.0,109650.0,0.4857925]
[1759067514603,0.06385978,109660.0,109650.0,1.3161525]
[1759067519996,0.06385978,109660.0,109650.0,0.4857925]
[1759067520202,0.06385978,109660.0,109650.0,1.3160725]
[1759067526714,0.06385978,109660.0,109650.0,0.4857925]
[1759067526909,0.06385978,109660.0,109650.0,1.3159525]
[1759067527215,0.06385978,109660.0,109650.0,0.4857925]
[1759067527415,0.06385978,109660.0,109650.0,1.3159525]
[1759067528116,0.06385978,109660.0,109650.0,0.4857925]
[1759067528311,0.06385978,109660.0,109650.0,1.3159525]
[1759067528512,0.06385978,109660.0,109650.0,0.4857925]
[1759067528710,0.06385978,109660.0,109650.0,1.3159125]
[1759067533120,0.01930806,109660.0,109650.0,1.3159125]
[1759067536726,0.01930806,109660.0,109650.0,0.9551125]
[1759067536924,0.01930806,109660.0,109650.0,0.8857925]
[1759067537325,0.01930806,109660.0,109650.0,1.7157925]
[1759067537626,0.01930806,109660.0,109650.0,1.7157525]
[1759067537826,0.01930806,109660.0,109650.0,0.8857925]
[1759067538028,0.01930806,109660.0,109650.0,1.7157525]
[1759067539119,0.01930806,109660.0,109650.0,0.8857925]
[1759067539418,0.01930806,109660.0,109650.0,1.7157525]
[1759067540026,0.01930806,109660.0,109650.0,0.8857925]
[1759067540219,0.01930806,109660.0,109650.0,1.7157125]
[1759067544529,0.01930806,109660.0,109650.0,1.7156325]
[1759067559449,0.01930806,109660.0,109650.0,1.3156325]
[1759067562346,0.01930806,109660.0,109650.0,1.3808475]
[1759067566644,0.01930806,109660.0,109650.0,1.3156325]
[1759067572458,0.01930806,109660.0,109650.0,1.3808475]
[1759067575360,0.01930806,109660.0,109650.0,1.3156325]
[1759067577164,0.04184806,109660.0,109650.0,1.3150325]
[1759067577461,0.04184806,109660.0,109650.0,0.4857925]
[1759067577861,0.04184806,109660.0,109650.0,1.3150325]
[1759067580653,0.04184806,109660.0,109650.0,2.4850325]
[1759067585362,0.04184806,109660.0,109650.0,1.6557925]
[1759067585570,0.04184806,109660.0,109650.0,2.4849125]
[1759067589177,0.04184806,109660.0,109650.0,1.6557925]
[1759067589365,0.04184806,109660.0,109650.0,2.4848725]
[1759067593270,0.04184806,109660.0,109650.0,1.6557925]
[1759067593670,0.04184806,109660.0,109650.0,2.4848325]
[1759067594670,0.04184806,109660.0,109650.0,1.6557925]
[1759067594876,0.04184806,109660.0,109650.0,2.4848325]
[1759067595082,0.04184806,109660.0,109650.0,1.6557925]
[1759067595281,0.04184806,109660.0,109650.0,2.4848325]
[1759067595483,0.04184806,109660.0,109650.0,1.6557925]
[1759067595782,0.04184806,109660.0,109650.0,2.4847925]
[1759067602586,0.04184806,109660.0,109650.0,2.5500075]
[1759067606488,0.04184806,109660.0,109650.0,2.4847925]
[1759067621299,0.04184806,109660.0,109650.0,2.5500075]
[1759067623296,0.04184806,109660.0,109650.0,2.4847925]
[1759067627198,0.04184806,109660.0,109650.0,1.6557925]
[1759067627399,0.04184806,109660.0,109650.0,2.4845925]
[1759067628101,0.04184806,109660.0,109650.0,1.6557925]
[1759067628398,0.04184806,109660.0,109650.0,2.4845925]
[1759067628697,0.09835064,109660.0,109650.0,0.1121825]
[1759067628898,0.07730867,109660.0,109650.0,0.9409825]
[1759067638605,0.07730867,109660.0,109650.0,1.3017825]
[1759067639806,0.07632316,109660.0,109650.0,1.3017825]
[1759067640205,0.05547806,109660.0,109650.0,1.3017825]
[1759067640507,0.07729606,109660.0,109650.0,1.3017825]
[1759067646917,0.05547806,109660.0,109650.0,1.3017825]
[1759067652226,0.07725993,109660.0,109650.0,1.3017825]
[1759067655029,0.05547806,109660.0,109650.0,1.3017825]
[1759067655327,0.07726246,109660.0,109650.0,1.3017825]
[1759067656124,0.05547806,109660.0,109650.0,1.3017825]
[1759067658324,0.07726707,109660.0,109650.0,1.3017825]
[1759067662930,0.07726707,109660.0,109650.0,0.9409825]
[1759067677141,0.07726707,109660.0,109650.0,0.9519125]
[1759067677446,0.07726707,109660.0,109650.0,1.3127125]
[1759067677846,0.07726707,109660.0,109650.0,0.9519125]
[1759067686552,0.07726707,109660.0,109650.0,0.9409825]
[1759067687258,0.07726707,109660.0,109650.0,0.1121825]
[1759067687554,0.07726707,109660.0,109650.0,0.9405425]
[1759067688543,0.01954438,109660.0,109650.0,0.95123189]
[1759067688748,0.29650964,109670.0,109660.0,0.1130096]
[1759067688952,0.33109964,109670.0,109660.0,0.12369899]
[1759067691759,0.27551481,109670.0,109660.0,0.12369899]
[1759067692759,0.23275636,109670.0,109660.0,0.12369899]
[1759067693760,0.20282544,109670.0,109660.0,0.12369899]
[1759067694656,0.02603833,109670.0,109660.0,0.12369899]
[1759067694962,0.02603833,109670.0,109660.0,0.13754899]
[1759067696559,0.01107293,109670.0,109660.0,0.13754899]
[1759067696757,1.28610484,109680.0,109670.0,0.0911413]
[1759067696956,1.28610484,109680.0,109670.0,0.10183069]
[1759067697763,1.2138963,109680.0,109670.0,0.10183069]
[1759067698066,1.2138963,109680.0,109670.0,0.10183087]
[1759067698761,1.18816464,109680.0,109670.0,0.10183087]
[1759067698960,1.27930464,109680.0,109670.0,0.10183087]
[1759067699460,0.42460252,109680.0,109670.0,0.13754087]
[1759067699659,0.02460252,109680.0,109670.0,0.13754087]
[1759067699865,0.85284252,109680.0,109670.0,0.13754087]
[1759067700457,0.02460252,109680.0,109670.0,0.49834087]
[1759067700665,0.75481676,109680.0,109670.0,0.49834087]
[1759067700962,0.74626584,109680.0,109670.0,0.49834087]
[1759067701373,0.02168718,109680.0,109670.0,0.49834087]
[1759067703468,0.01741176,109680.0,109670.0,0.49834087]
[1759067703670,1.33339388,109690.0,109680.0,0.126843]
[1759067703969,1.34255345,109690.0,109680.0,0.13753257]
[1759067704566,1.32758945,109690.0,109680.0,0.13753257]
[1759067704869,1.28483517,109690.0,109680.0,0.13753257]
[1759067705967,0.36546997,109690.0,109680.0,0.13753257]
[1759067706168,1.19366997,109690.0,109680.0,0.13753257]
[1759067706662,0.00915957,109690.0,109680.0,0.13753257]
[1759067706861,0.8282,109690.0,109680.0,0.13753257]
[1759067707867,0.95736508,109700.0,109680.0,0.22866557]
[1759067708068,0.95736508,109700.0,109690.0,0.01385]
[1759067708271,0.95736508,109700.0,109690.0,0.04639957]
[1759067708464,1.78552508,109700.0,109690.0,0.04639957]
[1759067708768,1.69574555,109700.0,109690.0,0.04639957]
[1759067708970,1.69574555,109700.0,109690.0,0.13752427]
[1759067709772,1.64016774,109700.0,109690.0,0.13752427]
[1759067710473,1.64933325,109700.0,109690.0,0.13752427]
[1759067711172,1.53614479,109700.0,109690.0,0.13752427]
[1759067711370,1.38474479,109700.0,109690.0,0.13752427]
[1759067712674,1.29362509,109700.0,109690.0,0.13752427]
[1759067712874,1.32061725,109700.0,109690.0,0.13752427]
[1759067713074,1.34147338,109700.0,109690.0,0.13752427]
[1759067713477,1.34147338,109700.0,109690.0,0.1268347]
[1759067713674,1.31154687,109700.0,109690.0,0.1268347]
[1759067714374,1.31154687,109700.0,109690.0,0.13752274]
[1759067715574,1.33294769,109700.0,109690.0,0.13752274]
[1759067715874,1.27736988,109700.0,109690.0,0.13752274]
[1759067716670,1.23461772,109700.0,109690.0,0.13752274]
[1759067717071,1.23461709,109700.0,109690.0,0.13752274]
[1759067717876,1.23461709,109700.0,109690.0,0.04639804]
[1759067718178,1.23461709,109700.0,109690.0,0.03571]
[1759067718679,1.18331471,109700.0,109690.0,0.03571]
[1759067718976,1.18331471,109700.0,109690.0,0.1268347]
[1759067720280,1.25704254,109700.0,109690.0,0.1268347]
[1759067720578,1.23139136,109700.0,109690.0,0.1268347]
[1759067720776,1.18863937,109700.0,109690.0,0.1268347]
[1759067720981,0.10429353,109700.0,109690.0,0.5268347]
[1759067721371,0.09512802,109700.0,109690.0,0.5268347]
[1759067722178,0.03955882,109700.0,109690.0,0.90432877]
[1759067722379,0.01676778,109710.0,109700.0,0.1266963]
[1759067722580,0.79131391,109720.0,109710.0,0.126688]
[1759067722782,1.23243391,109720.0,109710.0,0.126688]
[1759067723077,1.2114,109720.0,109710.0,0.126688]
[1759067723480,1.23239966,109720.0,109710.0,0.126688]
[1759067723679,1.20247926,109720.0,109710.0,0.126688]
[1759067724072,1.20247926,109720.0,109710.0,0.01351]
[1759067724073,1.27660172,109720.0,109710.0,0.01351]
[1759067724273,1.76770152,109720.0,109700.0,0.1266942]
[1759067724476,0.3608,109710.0,109700.0,0.1266942]
[1759067724676,0.29668051,109710.0,109700.0,0.1266942]
[1759067724873,0.4,109710.0,109700.0,0.03558]
[1759067725076,0.8519084,109710.0,109690.0,0.488241]
[1759067725270,0.79494808,109700.0,109690.0,0.488241]
[1759067725480,0.79494808,109700.0,109690.0,0.487841]
[1759067725680,0.79494808,109700.0,109690.0,0.488241]
[1759067726984,0.4423338,109720.0,109700.0,0.1266964]
[1759067727282,0.85012,109710.0,109700.0,0.1266964]
[1759067727778,1.61092,109710.0,109700.0,0.1266964]
[1759067727984,1.25012,109710.0,109700.0,0.1266964]
[1759067728783,1.16249026,109710.0,109700.0,0.1266964]
[1759067729681,1.27085414,109720.0,109710.0,0.1266881]
[1759067729881,1.27597414,109720.0,109710.0,0.1266881]
[1759067730085,0.94509454,109720.0,109710.0,0.1266881]
[1759067730280,0.09125454,109720.0,109710.0,0.1266881]
[1759067730474,0.09494691,109720.0,109710.0,0.13737415]
[1759067730681,0.85605785,109720.0,109710.0,0.13737415]
[1759067730879,1.21624,109720.0,109710.0,0.13737415]
[1759067731081,1.3077387,109720.0,109710.0,0.02419605]
[1759067731278,1.72874578,109720.0,109710.0,0.01068605]
[1759067731785,0.87330578,109720.0,109710.0,0.01068605]
[1759067731985,1.73066578,109720.0,109710.0,0.01068605]
[1759067732186,0.87330578,109720.0,109710.0,0.01068605]
[1759067732493,0.47701987,109720.0,109710.0,0.01068605]
[1759067732875,1.29147227,109720.0,109710.0,0.01068605]
[1759067733281,0.43427227,109720.0,109710.0,0.01068605]
[1759067733481,1.29147227,109720.0,109710.0,0.01068605]
[1759067733777,1.2615501,109720.0,109710.0,0.01068605]
[1759067734178,0.42638628,109720.0,109710.0,0.01068605]
[1759067734378,0.49912423,109720.0,109710.0,0.01068605]
[1759067734779,1.38863373,109720.0,109710.0,0.01068605]
[1759067735489,1.38863373,109720.0,109710.0,0.0106869]
[1759067736584,0.07615353,109700.0,109690.0,0.37465]
[1759067736788,1.23903618,109700.0,109680.0,0.4878485]
[1759067736992,1.33015708,109700.0,109680.0,0.4878485]
[1759067737197,1.33015708,109700.0,109690.0,0.0004]
[1759067737493,1.27458042,109700.0,109690.0,0.0004]
[1759067737793,1.29567119,109700.0,109690.0,0.0004]
[1759067737982,1.29567119,109700.0,109680.0,0.1270503]
[1759067738186,1.29567119,109700.0,109690.0,0.0004]
[1759067738586,1.28712066,109700.0,109690.0,0.0004]
[1759067738784,1.25719381,109700.0,109690.0,0.0004]
[1759067739402,1.23515763,109700.0,109690.0,0.0004]
[1759067739583,1.25720142,109700.0,109690.0,0.0004]
[1759067739984,1.68995642,109700.0,109690.0,0.0004]
[1759067740387,0.0911313,109680.0,109670.0,0.1267155]
[1759067740582,0.96348169,109680.0,109670.0,0.01351]
[1759067740782,0.92072529,109680.0,109670.0,0.01351]
[1759067740989,0.92072529,109680.0,109670.0,0.1046497]
[1759067741189,0.92072529,109680.0,109670.0,0.1050497]
[1759067741389,0.8985615,109680.0,109670.0,0.12953197]
[1759067741787,0.8985615,109680.0,109670.0,0.13053197]
[1759067742492,0.8984415,109680.0,109670.0,0.13053197]
[1759067742688,0.85648,109680.0,109670.0,0.13053197]
[1759067742887,0.0911313,109680.0,109670.0,0.15260197]
[1759067743090,0.9473713,109680.0,109670.0,0.15360197]
[1759067743292,0.0911313,109680.0,109670.0,0.1291197]
[1759067743593,1.01888242,109680.0,109670.0,0.4899197]
[1759067743793,0.98895271,109680.0,109670.0,0.4899197]
[1759067744692,0.10943646,109680.0,109670.0,0.4899197]
[1759067744892,0.9471313,109680.0,109670.0,0.4899197]
[1759067745494,0.4519281,109690.0,109670.0,0.4899197]
[1759067745793,0.8554,109680.0,109670.0,0.4899197]
[1759067745995,0.87637066,109680.0,109670.0,0.4899197]
[1759067746194,0.96750206,109680.0,109670.0,0.4899197]
[1759067746400,0.96750206,109680.0,109670.0,0.4889197]
[1759067746597,0.96750206,109680.0,109670.0,0.4899197]
[1759067747000,0.44271902,109710.0,109690.0,0.01351]
[1759067747196,0.032755,109710.0,109700.0,0.03558]
[1759067747400,0.9670277,109710.0,109700.0,0.03558]
[1759067747603,0.96275248,109710.0,109700.0,0.03558]
[1759067747898,1.32355248,109710.0,109700.0,0.01351]
[1759067748493,1.32355248,109710.0,109700.0,0.02419727]
[1759067748698,1.23672,109710.0,109700.0,0.02419727]
[1759067748901,1.19397092,109710.0,109700.0,0.02419727]
[1759067749194,1.28507862,109710.0,109700.0,0.01351]
[1759067749499,1.22950482,109710.0,109700.0,0.02419727]
[1759067749799,1.22950482,109710.0,109700.0,0.01068727]
[1759067750493,1.21240506,109710.0,109700.0,0.01068727]
[1759067750695,1.20385518,109710.0,109700.0,0.01068727]
[1759067752203,1.3265877,109710.0,109700.0,0.01068727]
[1759067752506,0.9653877,109710.0,109700.0,0.01068727]
[1759067752801,0.87428,109710.0,109700.0,0.01068727]
[1759067752994,0.9653877,109710.0,109700.0,0.01068727]
[1759067753202,0.9649877,109710.0,109700.0,0.01068727]
[1759067753795,0.93506312,109710.0,109700.0,0.01068727]
[1759067754801,0.91368842,109710.0,109700.0,0.01068727]
[1759067755096,0.03980842,109710.0,109700.0,0.01068727]
[1759067755394,1.04154,109720.0,109710.0,0.1262361]